fUSD/lending_fUSD_20241002
["ID","MTS","AMOUNT","RATE_DAILY","PERIOD"]
[339707697,1727886631605,-250.0,0.00016793,2]
[339707698,1727886631615,-502.02900474,0.00016796,2]
[339707699,1727886631919,-1529.93771188,0.00016796,2]
[339707717,1727886637510,-261.93983581,0.00016796,2]
[339707718,1727886637522,-457.09344757,0.00016796,2]
[339707719,1727886637531,-253.79,0.00016841,2]
[339707720,1727886637541,-518.07,0.00017205,2]
[339707721,1727886637550,-423.25,0.0001729,2]
[339707722,1727886637560,-423.25,0.000173,2]
[339707723,1727886637569,-846.1,0.000173,2]
[339707724,1727886637579,-423.17,0.000173,2]
[339707725,1727886637588,-423.25,0.000176,2]
[339707726,1727886637597,-2757.4702,0.00017655,2]
[339707727,1727886637606,-4630.983,0.00017655,2]
[339707728,1727886637616,-1000.0,0.00017655,2]
[339707729,1727886637626,-423.25,0.000177,2]
[339707730,1727886637638,-690.0674098,0.00017708,2]
[339707731,1727886637647,-422.42516304,0.00017718,2]
[339707732,1727886637656,-150.99,0.00017729,2]
[339707733,1727886637665,-179.99,0.00017789,2]
[339707734,1727886637674,-7500.0,0.0001779,2]
[339707735,1727886637683,-439.7541,0.00017799,2]
[339707736,1727886637692,-423.25,0.000178,2]
[339707737,1727886637701,-477.20756348,0.00017807,2]
[339707738,1727886637710,-343.0,0.00017807,2]
[339707739,1727886637719,-670.56,0.00017808,2]
[339707740,1727886637729,-1374.8,0.00017808,2]
[339707741,1727886637741,-451.19026334,0.00017808,2]
[339707742,1727886637750,-500.0,0.00017808,2]
[339707743,1727886637759,-1374.8,0.00017808,2]
[339707745,1727886637769,-500.0,0.00017808,2]
[339707747,1727886637778,-1374.8,0.00017808,2]
[339707749,1727886637788,-500.0,0.00017808,2]
[339707751,1727886637797,-500.0,0.00017808,2]
[339707753,1727886637807,-500.0,0.00017808,2]
[339707755,1727886637819,-450.5421915,0.00017808,2]
[339707758,1727886637832,-49.4578085,0.00017808,2]
[339707760,1727886637842,-500.0,0.00017808,2]
[339707761,1727886637851,-88.4921915,0.00017808,2]
[339707764,1727886637866,-411.5078085,0.00017808,2]
[339707766,1727886637875,-5.32763194,0.00017808,2]
[339707768,1727886637887,-494.67236806,0.00017808,2]
[339707770,1727886637896,-306.89305766,0.00017808,2]
[339707772,1727886637907,-193.10694234,0.00017808,2]
[339707774,1727886637919,-500.0,0.00017808,2]
[339707776,1727886637928,-584.1,0.00017808,2]
[339707778,1727886637937,-584.1,0.00017808,2]
[339707780,1727886637946,-584.1,0.00017808,2]
[339707782,1727886637955,-991.7,0.00017808,2]
[339707784,1727886637965,-991.7,0.00017808,2]
[339707786,1727886637974,-991.7,0.00017808,2]
[339707788,1727886637983,-500.0,0.00017808,2]
[339707790,1727886637993,-500.0,0.00017808,2]
[339707792,1727886638002,-500.0,0.00017808,2]
[339707794,1727886638012,-500.0,0.00017808,2]
[339707796,1727886638021,-500.0,0.00017808,2]
[339707798,1727886638030,-500.0,0.00017808,2]
[339707800,1727886638039,-642.41,0.00017808,2]
[339707802,1727886638049,-642.41,0.00017808,2]
[339707804,1727886638059,-642.41,0.00017808,2]
[339707806,1727886638068,-522.0062995,0.00017808,2]
[339707808,1727886638078,-911.04,0.00017808,2]
[339707810,1727886638087,-911.04,0.00017808,2]
[339707812,1727886638096,-500.0,0.00017808,2]
[339707814,1727886638107,-1537.01,0.00017808,2]
[339707816,1727886638116,-561.17652942,0.00017808,2]
[339707819,1727886638130,-975.83347058,0.00017808,2]
[339707821,1727886638141,-1537.01,0.00017808,2]
[339707823,1727886638150,-500.0,0.00017808,2]
[339707825,1727886638159,-240.50652942,0.00017808,2]
[339707828,1727886638183,-257.60360108,0.00017808,2]
[339707830,1727886638194,-660.79395,0.00017808,2]
[339707833,1727886638212,-487.4259195,0.00017808,2]
[339707835,1727886638223,-678.20661707,0.00017808,2]
[339707950,1727886639407,-968.12338293,0.00017808,2]
[339707952,1727886639417,-899.81,0.00017808,2]
[339707954,1727886639427,-112.53589201,0.00017808,2]
[339707965,1727886639520,-787.27410799,0.00017808,2]
[339707967,1727886639530,-370.19042201,0.00017808,2]
[339708211,1727886642540,-529.61957799,0.00017808,2]
[339708213,1727886642549,-38.22042201,0.00017808,2]
[339708219,1727886642596,-461.77957799,0.00017808,2]
[339708221,1727886642605,-730.68,0.00017808,2]
[339708223,1727886642615,-730.68,0.00017808,2]
[339708224,1727886642625,-730.68,0.00017808,2]
[339708226,1727886642635,-2422.34,0.00017808,2]
[339708230,1727886642650,-2422.34,0.00017808,2]
[339708232,1727886642659,-500.0,0.00017808,2]
[339708234,1727886642668,-500.0,0.00017808,2]
[339708236,1727886642678,-500.0,0.00017808,2]
[339708237,1727886642687,-500.26623162,0.00017808,2]
[339708238,1727886642696,-515.91,0.00017808,2]
[339708239,1727886642706,-500.0,0.00017808,2]
[339708240,1727886642715,-500.0,0.00017808,2]
[339708241,1727886642725,-500.0,0.00017808,2]
[339708242,1727886642735,-500.0,0.00017808,2]
[339708243,1727886642747,-500.0,0.00017808,2]
[339708244,1727886642757,-500.0,0.00017808,2]
[339708245,1727886642767,-500.0,0.00017808,2]
[339708246,1727886642776,-569.04,0.00017808,2]
[339708247,1727886642787,-569.04,0.00017808,2]
[339708248,1727886642796,-569.04,0.00017808,2]
[339708249,1727886642806,-1289.37,0.00017808,2]
[339708250,1727886642815,-1289.37,0.00017808,2]
[339708251,1727886642827,-946.52,0.00017808,2]
[339708252,1727886642837,-946.52,0.00017808,2]
[339708253,1727886642846,-500.0,0.00017808,2]
[339708254,1727886642855,-500.0,0.00017808,2]
[339708255,1727886642865,-500.0,0.00017808,2]
[339708256,1727886642874,-500.0,0.00017808,2]
[339708257,1727886642884,-500.0,0.00017808,2]
[339708258,1727886642895,-500.0,0.00017808,2]
[339708259,1727886642904,-500.0,0.00017808,2]
[339708260,1727886642913,-1175.51,0.00017808,2]
[339708261,1727886642923,-500.0,0.00017808,2]
[339708262,1727886642933,-62.42079039,0.00017808,2]
[339708263,1727886643065,-437.57920961,0.00017808,2]
[339708264,1727886643075,-541.12,0.00017808,2]
[339708265,1727886643085,-500.0,0.00017808,2]
[339708266,1727886643093,-500.0,0.00017808,2]
[339708268,1727886643102,-541.12,0.00017808,2]
[339708270,1727886643111,-500.0,0.00017808,2]
[339708271,1727886643121,-500.0,0.00017808,2]
[339708272,1727886643131,-500.0,0.00017808,2]
[339708273,1727886643142,-500.0,0.00017808,2]
[339708274,1727886643151,-500.0,0.00017808,2]
[339708275,1727886643161,-500.0,0.00017808,2]
[339708276,1727886643170,-125.94876409,0.00017808,2]
[339708277,1727886643194,-295.28000002,0.00017808,2]
[339708545,1727886645592,-78.77123589,0.00017808,2]
[339708548,1727886645600,-1399.49,0.00017808,2]
[339708551,1727886645609,-192.79763944,0.00017808,2]
[339708554,1727886645618,-1399.49,0.00017808,2]
[339708556,1727886645627,-500.0,0.00017808,2]
[339708558,1727886645637,-1399.49,0.00017808,2]
[339708560,1727886645648,-500.0,0.00017808,2]
[339708564,1727886645659,-500.0,0.00017808,2]
[339708566,1727886645668,-500.0,0.00017808,2]
[339708569,1727886645677,-500.0,0.00017808,2]
[339708572,1727886645686,-500.0,0.00017808,2]
[339708576,1727886645695,-500.0,0.00017808,2]
[339708579,1727886645705,-500.0,0.00017808,2]
[339708582,1727886645714,-500.0,0.00017808,2]
[339708585,1727886645722,-500.0,0.00017808,2]
[339708588,1727886645732,-500.0,0.00017808,2]
[339708589,1727886645742,-1891.24,0.00017808,2]
[339708593,1727886645752,-500.0,0.00017808,2]
[339708596,1727886645762,-500.0,0.00017808,2]
[339708597,1727886645771,-500.0,0.00017808,2]
[339708599,1727886645780,-1210.4,0.00017808,2]
[339708601,1727886645790,-1210.4,0.00017808,2]
[339708604,1727886645799,-500.0,0.00017808,2]
[339708606,1727886645808,-398.01069168,0.00017808,2]
[339708608,1727886645818,-500.0,0.00017808,2]
[339708610,1727886645828,-827.39,0.00017808,2]
[339708612,1727886645837,-827.39,0.00017808,2]
[339708614,1727886645846,-500.0,0.00017808,2]
[339708616,1727886645855,-500.0,0.00017808,2]
[339708618,1727886645864,-500.0,0.00017808,2]
[339708620,1727886645873,-500.0,0.00017808,2]
[339708622,1727886645882,-500.0,0.00017808,2]
[339708623,1727886645891,-500.0,0.00017808,2]
[339708625,1727886645901,-500.0,0.00017808,2]
[339708629,1727886645911,-500.0,0.00017808,2]
[339708632,1727886645921,-1604.27,0.00017808,2]
[339708636,1727886645930,-500.0,0.00017808,2]
[339708639,1727886645940,-500.0,0.00017808,2]
[339708642,1727886645951,-500.0,0.00017808,2]
[339708645,1727886645960,-500.0,0.00017808,2]
[339708648,1727886645969,-500.0,0.00017808,2]
[339708651,1727886645978,-500.0,0.00017808,2]
[339708654,1727886645987,-500.0,0.00017808,2]
[339708657,1727886645996,-515.78836902,0.00017808,2]
[339708660,1727886646005,-721.67,0.00017808,2]
[339708662,1727886646015,-936.83,0.00017808,2]
[339708664,1727886646024,-936.83,0.00017808,2]
[339708666,1727886646033,-936.83,0.00017808,2]
[339708668,1727886646042,-891.21,0.00017808,2]
[339708670,1727886646051,-891.21,0.00017808,2]
[339708672,1727886646060,-500.0,0.00017808,2]
[339708674,1727886646070,-500.0,0.00017808,2]
[339708676,1727886646079,-500.0,0.00017808,2]
[339708677,1727886646088,-314.7289842,0.00017808,2]
[339708678,1727886646097,-500.0,0.00017808,2]
[339708679,1727886646106,-500.0,0.00017808,2]
[339708680,1727886646115,-500.0,0.00017808,2]
[339708681,1727886646124,-400.56658779,0.00017808,2]
[339708683,1727886646212,-6918.297,0.00017669,2]
[339708684,1727886646222,-99.43341221,0.00017808,2]
[339708685,1727886646231,-500.0,0.00017808,2]
[339708687,1727886646241,-500.0,0.00017808,2]
[339708689,1727886646250,-500.0,0.00017808,2]
[339708691,1727886646260,-51.62440083,0.00017808,2]
[339708693,1727886646277,-448.37559917,0.00017808,2]
[339708695,1727886646286,-169.8966552,0.00017808,2]
[339708697,1727886646295,-500.0,0.00017808,2]
[339708699,1727886646304,-304.59723977,0.00017808,2]
[339708703,1727886646326,-195.40276023,0.00017808,2]
[339708705,1727886646336,-500.0,0.00017808,2]
[339708707,1727886646345,-585.06,0.00017808,2]
[339708709,1727886646354,-585.06,0.00017808,2]
[339708711,1727886646363,-585.06,0.00017808,2]
[339708713,1727886646374,-1031.56313351,0.00017808,2]
[339710054,1727887831632,-161.18,0.00010959,2]
[339710056,1727887831642,-490.88,0.00014493,2]
[339710058,1727887831651,-150.0,0.00016077,2]
[339710060,1727887831660,-150.0,0.00016077,2]
[339710061,1727887831670,-150.0,0.00016077,2]
[339710062,1727887831679,-177.71,0.00016232,2]
[339710063,1727887831688,-200.0,0.00016244,2]
[339710064,1727887831697,-2565.71674547,0.00016422,2]
[339710065,1727887831708,-6558.0757,0.00016422,2]
[339710066,1727887831718,-5015.91678337,0.00016422,2]
[339710067,1727887831763,-970.8031062,0.00016422,2]
[339710068,1727887831774,-285.29701288,0.00016422,2]
[339710069,1727887831785,-8504.19065208,0.00016422,2]
[339710070,1727887831794,-150.14,0.00016438,2]
[339710071,1727887831803,-1310.49,0.00016489,2]
[339710072,1727887831812,-157.84,0.00016491,2]
[339710073,1727887831823,-2000.0,0.000165,2]
[339710074,1727887831832,-160.0,0.00016529,2]
[339710075,1727887831841,-635.33,0.00016573,2]
[339710076,1727887831850,-250.0,0.0001661,2]
[339710077,1727887831860,-499.99,0.0001661,2]
[339710078,1727887831869,-250.0,0.00016659,2]
[339710080,1727887831878,-150.0,0.00016712,2]
[339710082,1727887831887,-840.0,0.00016736,2]
[339710084,1727887831896,-157.99,0.0001675,2]
[339710086,1727887831905,-490.88,0.00016757,2]
[339710088,1727887831915,-299.02,0.00016825,2]
[339710089,1727887831925,-2000.0,0.00017,2]
[339710091,1727887831934,-1506.96,0.00017041,2]
[339710093,1727887831943,-846.34,0.00017041,2]
[339710094,1727887831952,-202.35,0.00017258,7]
[339710096,1727887831961,-759.44,0.0001727,2]
[339710098,1727887831970,-150.0,0.000173,2]
[339710100,1727887831981,-423.25,0.000173,2]
[339710102,1727887831991,-2000.0,0.000175,2]
[339710103,1727887831999,-5762.94241741,0.00017558,2]
[339710104,1727887832009,-422.42516304,0.00017584,2]
[339710105,1727887832019,-1507.44,0.000176,2]
[339710106,1727887832028,-1631.14696882,0.00017608,2]
[339710107,1727887832037,-173.84790925,0.00017608,2]
[339710108,1727887832047,-1631.14696881,0.0001764,2]
[339710109,1727887832056,-27378.94792354,0.00017668,2]
[339710110,1727887832065,-505.117,0.00017669,2]
[339710111,1727887832077,-626.0,0.00017669,2]
[339710112,1727887832086,-1296.0,0.00017669,2]
[339710113,1727887832096,-449.0,0.00017669,2]
[339710114,1727887832105,-426.424,0.00017669,2]
[339710115,1727887832115,-623.581,0.00017669,2]
[339710116,1727887832126,-558.0,0.00017669,2]
[339710117,1727887832135,-2037.47,0.00017669,2]
[339710118,1727887832144,-3350.0,0.00017669,2]
[339710119,1727887832153,-806.0,0.00017669,2]
[339710120,1727887832162,-1910.0,0.00017669,2]
[339710121,1727887832172,-150.0,0.00017669,2]
[339710122,1727887832181,-1148.0,0.00017669,2]
[339710123,1727887832190,-268.035,0.00017669,2]
[339710124,1727887832201,-288.319,0.00017669,2]
[339710125,1727887832211,-1631.14696881,0.00017673,2]
[339710126,1727887832222,-9336.7361,0.00017687,2]
[339710127,1727887832233,-627.5545,0.00017697,2]
[339710128,1727887832243,-153.13,0.00017698,2]
[339710129,1727887832252,-1631.14696881,0.00017705,2]
[339710130,1727887832261,-17908.03496722,0.00017707,7]
[339710131,1727887832368,-2781.38216888,0.00017707,7]
[339710132,1727887832379,-1012.51979136,0.00017707,7]
[339710133,1727887832397,-1108.19691343,0.00017707,7]
[339710134,1727887832408,-342.1,0.00017707,7]
[339710136,1727887837593,-300.32,0.00016661,2]
[339710137,1727887837604,-282.57165884,0.00016661,2]
[339710138,1727887837615,-22.00834116,0.00016661,2]
[339710139,1727887837624,-285.663,0.00017669,2]
[339710140,1727887837634,-171.56451037,0.00017707,7]
[339710141,1727887837645,-500.0,0.00017707,7]
[339710142,1727887837656,-1856.5631075,0.00017707,7]
[339710162,1727887838050,-586.27968751,0.00017707,7]
[339710164,1727887838061,-130879.90713018,0.00017707,7]
[339710166,1727887838078,-1656.96940033,0.00017707,7]
[339710167,1727887838090,-496.804842,0.00017707,7]
[339710170,1727887838110,-1637.0143924,0.00017707,7]
[339710319,1727887839886,-164.0,0.00017669,2]
[339710321,1727887839897,-164.565,0.00017669,2]
[339710323,1727887839907,-671.435,0.00017707,7]
[339710325,1727887839919,-2937.0,0.00017707,7]
[339710327,1727887839931,-912.5,0.00017707,7]
[339710519,1727887842746,-807.846468,0.00017707,7]
[339710541,1727887842964,-3104.35,0.00017707,7]
[339710671,1727887845954,-152.609,0.00017669,2]
[339710672,1727887845963,-245.7759054,0.00017707,7]
[339710774,1727889031827,-177.53,0.00010959,2]
[339710775,1727889031836,-250.0,0.00011,2]
[339710776,1727889031845,-272.47,0.00012,5]
[339710777,1727889031856,-47.53,0.00012,5]
[339710778,1727889031865,-357.15380834,0.000123,2]
[339710779,1727889031874,-1355.23619166,0.000129,2]
[339710780,1727889032009,-1163.4,0.000129,2]
[339710781,1727889032020,-1039.14973622,0.000129,2]
[339710850,1727889038470,-1072.29842441,0.000129,2]
[339710853,1727889038490,-2701.72070784,0.000129,2]
[339710856,1727889038524,-994.90595235,0.000129,2]
[339710859,1727889038538,-827.19763797,0.000129,2]
[339711062,1727889040770,-539.06096133,0.000129,2]
[339711073,1727889040885,-32859.32089507,0.000129,2]
[339711075,1727889040895,-456.93,0.0001472,2]
[339711077,1727889040904,-250.76074081,0.00016003,2]
[339711079,1727889040913,-150.0,0.00016003,2]
[339711080,1727889040923,-150.0,0.00016003,2]
[339711082,1727889040932,-160.0,0.00016268,2]
[339711085,1727889040942,-157.99,0.00016406,2]
[339711086,1727889040952,-150.14,0.00016438,2]
[339711088,1727889040962,-1429.13,0.00016438,2]
[339711091,1727889040971,-499.99,0.00016438,2]
[339711092,1727889040981,-239.21,0.0001652,2]
[339711095,1727889040990,-179.99,0.0001652,2]
[339711096,1727889041000,-250.0,0.00016674,2]
[339711099,1727889041011,-250.0,0.00016674,2]
[339711101,1727889041021,-312.28,0.00016674,2]
[339711103,1727889041030,-2819.52,0.00016674,2]
[339711104,1727889041039,-418.14,0.00016706,2]
[339711106,1727889041049,-872.0,0.00016708,2]
[339711108,1727889041059,-167.3,0.00016795,2]
[339711110,1727889041068,-157.91,0.00016809,2]
[339711112,1727889041078,-150.0,0.00016892,2]
[339711114,1727889041087,-456.93,0.00016984,2]
[339711116,1727889041096,-150.0,0.0001726,2]
[339711118,1727889041105,-715.48,0.0001726,2]
[339711120,1727889041115,-150.0,0.0001729,2]
[339711122,1727889041124,-358.42,0.0001729,2]
[339711124,1727889041133,-150.0,0.0001729,2]
[339711126,1727889041143,-358.42,0.0001729,2]
[339711128,1727889041152,-167.46,0.00017314,2]
[339711130,1727889041161,-436.09254635,0.00017408,2]
[339711132,1727889041171,-391.07771197,0.00017426,2]
[339711134,1727889041181,-151.74,0.0001747,2]
[339711136,1727889041191,-3962.66941837,0.0001747,2]
[339711138,1727889041200,-476.68278577,0.0001747,2]
[339711140,1727889041210,-151.74,0.0001747,2]
[339711142,1727889041219,-151.74,0.0001747,2]
[339711144,1727889041228,-151.74,0.0001747,2]
[339711146,1727889041237,-151.74,0.0001747,2]
[339711148,1727889041246,-500.73979238,0.00017473,2]
[339711149,1727889041257,-500.0,0.00017473,2]
[339711151,1727889041266,-500.0,0.00017473,2]
[339711153,1727889041276,-500.0,0.00017473,2]
[339711155,1727889041285,-521241.04263223,0.0001748,7]
[339711157,1727889041295,-311464.97463981,0.0001748,2]
[339711159,1727889041304,-3496.7072,0.00017508,2]
[339711161,1727889041313,-436.09254634,0.00017532,2]
[339711163,1727889041323,-3962.66941837,0.00017558,2]
[339711165,1727889041332,-5109.47426195,0.00017568,2]
[339711166,1727889041341,-3962.66941837,0.00017594,2]
[339711168,1727889041351,-35664.0247653,0.00017597,2]
[339711170,1727889041360,-151.74,0.00017597,2]
[339711172,1727889041369,-11888.0082551,0.00017598,2]
[339711174,1727889041379,-151.74,0.00017598,2]
[339711176,1727889041388,-5109.47426192,0.00017603,2]
[339711178,1727889041398,-75419.2657,0.00017607,2]
[339711180,1727889041407,-176.05001173,0.00017607,2]
[339711182,1727889041416,-1000.0,0.00017608,2]
[339711184,1727889041425,-21965.9731,0.00017608,2]
[339711186,1727889041435,-3962.66941837,0.00017629,2]
[339711188,1727889041444,-5109.47426192,0.00017639,2]
[339711190,1727889041453,-436.09254634,0.00017655,2]
[339711192,1727889041463,-15850.6776735,0.00017658,2]
[339711194,1727889041472,-3962.66941837,0.00017659,2]
[339711195,1727889041482,-196.83952938,0.00017666,2]
[339711197,1727889041494,-166.2962112,0.00017666,2]
[339711200,1727889041504,-510.93925834,0.00017667,2]
[339711201,1727889041517,-30949.08367993,0.00017668,2]
[339711203,1727889041526,-151.0,0.00017668,2]
[339711206,1727889041537,-256.774542,0.00017668,2]
[339711207,1727889041546,-151.707,0.00017669,2]
[339711209,1727889041555,-250.0,0.00017669,2]
[339711212,1727889041566,-156.602,0.00017669,2]
[339711214,1727889041576,-150.0,0.00017669,2]
[339711216,1727889041586,-1304.61,0.00017669,2]
[339711218,1727889041595,-449.0,0.00017669,2]
[339711220,1727889041606,-542.342,0.00017669,2]
[339711222,1727889041616,-1296.0,0.00017669,2]
[339711224,1727889041625,-1905.0,0.00017669,2]
[339711226,1727889041635,-185.761,0.00017669,2]
[339711228,1727889041645,-929.025,0.00017669,2]
[339711230,1727889041654,-150.0,0.00017669,2]
[339711232,1727889041664,-245.2,0.00017669,2]
[339711234,1727889041673,-1081.0,0.00017669,2]
[339711236,1727889041683,-309.33661885,0.00017673,2]
[339711238,1727889041692,-500.44898548,0.00017673,2]
[339711239,1727889041702,-5109.47426192,0.00017674,2]
[339711241,1727889041711,-151.74,0.00017686,2]
[339711243,1727889041722,-287.92372332,0.00017687,2]
[339711245,1727889041731,-7925.33883674,0.00017696,2]
[339711247,1727889041741,-15474.4727238,0.00017696,2]
[339711249,1727889041751,-3962.66941837,0.00017698,2]
[339711251,1727889041761,-15246.08,0.00017706,2]
[339711253,1727889041771,-206.0,0.00017707,2]
[339711255,1727889041781,-1752.2614,0.00017708,2]
[339711257,1727889041789,-196.83952937,0.00017708,2]
[339711259,1727889041799,-203.496895,0.00017708,2]
[339711261,1727889041808,-186.12311021,0.00017708,2]
[339711263,1727889041818,-5109.47426192,0.0001771,2]
[339711265,1727889041828,-451.0,0.0001771,2]
[339711267,1727889041838,-287.92372331,0.00017715,2]
[339711269,1727889041847,-3962.66941837,0.00017735,2]
[339711271,1727889041857,-287.92372331,0.00017742,2]
[339711273,1727889041867,-5109.47426192,0.00017745,2]
[339711275,1727889041876,-46423.4181716,0.00017746,2]
[339711277,1727889041886,-151.74,0.00017746,2]
[339711279,1727889041895,-151.74,0.00017746,2]
[339711281,1727889041905,-151.74,0.00017746,2]
[339711283,1727889041915,-151.74,0.00017746,2]
[339711285,1727889041924,-103029.404878,0.00017756,2]
[339711287,1727889041934,-263066.036305,0.00017756,2]
[339711289,1727889041943,-151.74,0.0001776,2]
[339711291,1727889041952,-151.0,0.00017766,2]
[339711293,1727889041962,-151.0,0.00017766,2]
[339711295,1727889041972,-151.0,0.00017766,2]
[339711297,1727889041982,-151.0,0.00017766,2]
[339711299,1727889041993,-151.0,0.00017766,2]
[339711301,1727889042003,-298.19092,0.00017766,2]
[339711303,1727889042015,-151.0,0.00017766,2]
[339711305,1727889042025,-151.0,0.00017766,2]
[339711306,1727889042034,-151.0,0.00017766,2]
[339711308,1727889042044,-151.0,0.00017766,2]
[339711310,1727889042054,-151.0,0.00017767,2]
[339711312,1727889042064,-151.199339,0.00017767,2]
[339711314,1727889042074,-161.837654,0.00017767,2]
[339711316,1727889042084,-151.0,0.00017767,2]
[339711318,1727889042093,-151.0,0.00017767,2]
[339711321,1727889042107,-151.0,0.00017767,2]
[339711323,1727889042117,-206.0,0.00017769,2]
[339711325,1727889042127,-153.0,0.00017769,2]
[339711327,1727889042136,-150.82,0.00017769,2]
[339711328,1727889042145,-151.96,0.00017769,2]
[339711330,1727889042155,-287.92372331,0.0001777,2]
[339711332,1727889042165,-15474.4727238,0.00017771,2]
[339711334,1727889042174,-333.25745372,0.00017773,2]
[339711336,1727889042184,-500.84141802,0.00017773,2]
[339711338,1727889042193,-160.85905037,0.00017773,2]
[339711340,1727889042203,-500.0,0.00017773,2]
[339711342,1727889042213,-500.42787659,0.00017773,2]
[339711344,1727889042222,-151.630044,0.00017777,2]
[339711346,1727889042233,-151.0,0.00017777,2]
[339711348,1727889042243,-151.0,0.00017777,2]
[339711350,1727889042252,-151.0,0.00017777,2]
[339711352,1727889042264,-151.0,0.00017777,2]
[339711354,1727889042274,-151.0,0.00017777,2]
[339711356,1727889042283,-230.761427,0.00017777,2]
[339711358,1727889042293,-151.0,0.00017777,2]
[339711360,1727889042302,-5109.47426192,0.00017781,2]
[339711362,1727889042312,-150.0,0.00017781,2]
[339711364,1727889042322,-181.38225713,0.00017781,2]
[339711365,1727889042331,-151.0,0.00017788,2]
[339711367,1727889042341,-151.0,0.00017788,2]
[339711369,1727889042353,-151.0,0.00017788,2]
[339711371,1727889042362,-287.92372331,0.00017797,2]
[339711373,1727889042372,-15474.4727238,0.00017798,2]
[339711375,1727889042382,-476.68278577,0.00017798,2]
[339711377,1727889042391,-476.68278577,0.00017798,2]
[339711379,1727889042400,-151.74,0.00017798,2]
[339711381,1727889042410,-151.74,0.00017798,2]
[339711382,1727889042419,-151.0,0.00017798,2]
[339711384,1727889042429,-151.0,0.00017798,2]
[339711386,1727889042438,-151.0,0.00017798,2]
[339711389,1727889042448,-1530.585026,0.000178,2]
[339711390,1727889042457,-492.1,0.000178,2]
[339711392,1727889042467,-168.611,0.00017807,2]
[339711394,1727889042477,-300.0,0.00017807,2]
[339711396,1727889042489,-300.0,0.00017807,2]
[339711398,1727889042499,-300.0,0.00017807,2]
[339711400,1727889042509,-300.0,0.00017807,2]
[339711402,1727889042518,-300.0,0.00017807,2]
[339711404,1727889042529,-300.0,0.00017807,2]
[339711406,1727889042538,-300.0,0.00017807,2]
[339711408,1727889042548,-300.0,0.00017807,2]
[339711410,1727889042558,-300.0,0.00017807,2]
[339711412,1727889042568,-300.0,0.00017807,2]
[339711414,1727889042578,-300.0,0.00017807,2]
[339711416,1727889042587,-300.0,0.00017807,2]
[339711418,1727889042597,-300.0,0.00017807,2]
[339711420,1727889042606,-300.0,0.00017807,2]
[339711422,1727889042616,-300.0,0.00017807,2]
[339711424,1727889042625,-300.0,0.00017807,2]
[339711426,1727889042634,-300.0,0.00017807,2]
[339711428,1727889042644,-300.0,0.00017807,2]
[339711430,1727889042654,-300.0,0.00017807,2]
[339711431,1727889042663,-317.48506853,0.00017807,2]
[339711432,1727889042673,-500.0,0.00017807,2]
[339711433,1727889042683,-323.10821088,0.00017807,2]
[339711434,1727889042693,-500.0,0.00017808,2]
[339711435,1727889042702,-500.0,0.00017808,2]
[339711436,1727889042711,-500.0,0.00017808,2]
[339711437,1727889042721,-276.02410815,0.00017808,2]
[339711438,1727889042730,-500.0,0.00017808,2]
[339711439,1727889042739,-500.0,0.00017808,2]
[339711440,1727889042749,-500.0,0.00017808,2]
[339711441,1727889042760,-500.0,0.00017808,2]
[339711443,1727889042769,-500.0,0.00017808,2]
[339711446,1727889042779,-500.0,0.00017808,2]